Cogmind - Beta 16.1 @@@ ROGUE MODE // 2026.03.30 @ 16:53:09 Player: KURIIRI Result: Self-destructed Performance ------------- Evolutions (4) 2000 Regions Visited (5) 1000 Robots Destroyed (70) 350 Value Destroyed (2046) 2046 Prototype IDs (29) 580 Alien Tech Used (0) 0 Bonus (766) 766 TOTAL SCORE: 6742 Bonus ------- Follower Combat Kills 40 Registered with UFD 300 Met Optimus in HQ 500 Friendly Fire -74 Cogmind --------- Core Integrity 711/850 Matter 265/300 Energy 76/100 System Corruption 2% Temperature Cool (0) Movement Treading (160) Location -6/Factory Parts ------- > --- POWER (2) -------- (None) > --- PROPULSION (3) --- Light Treads Improved Treads Improved Treads > --- UTILITY (7) ------ Improved Heat Sink High-capacity Storage Unit Gravity Neutralizer Improved Target Analyzer Improved Target Analyzer Hacking Suite > --- WEAPON (3) ------- (None) > --- INVENTORY (20) --- Improved Ion Engine Light Treads Improved Treads Compact Wheel Experimental Signal Interpreter Light Armor Plating Remote Shield System Restoration Module Improved Lightning Gun EMP Blaster Heavy Rocket Launcher Plasma Cutter CPS Tube (2) CPS Tube (2) Multitool Heavy Flail Peak State ------------ > --- POWER ------------ Deuterium Engine Deuterium Engine > --- PROPULSION ------- Improved Treads Compact Wheel Armored Wheel > --- UTILITY ---------- High-capacity Storage Unit Gravity Neutralizer Improved Target Analyzer Improved Target Analyzer Improved Target Analyzer Remote Shield Hacking Suite > --- WEAPON ----------- Improved Lightning Gun Improved Lightning Gun Improved Lightning Gun > --- INVENTORY -------- Improved Ion Engine Light Treads Light Treads Improved Treads Improved Treads Improved Treads Spiked Treads Improved Heat Sink Experimental Signal Interpreter Light Armor Plating System Restoration Module Improved Lightning Gun Plasma Rifle EMP Blaster Heavy Rocket Launcher Plasma Cutter CPS Tube CPS Tube Multitool Heavy Flail [Rating: 64] Favorites ----------- Power Light Ion Engine Engine Light Ion Engine Propulsion Light Treads Treads Light Treads Leg Aluminum Leg Wheel Compact Wheel Utility Large Storage Unit Device Improved Terrain Scanner Storage Large Storage Unit Processor Improved Target Analyzer Hackware Hacking Suite Protection Light Armor Plating Weapon Subdweller Beam Cannon Energy Gun Improved Lightning Gun Energy Cannon Subdweller Beam Cannon Ballistic Gun Improved Assault Rifle Launcher Grenade Launcher Impact Weapon Hammer Build | -11 -10 -10 -9 -9 -6 ------- Run | Yrd Mat Sub Rec Scr Fac Slots Evolved 8 | . . . . . 8 Power 1 | . . . . . 1 Propulsion 1 | . . . . . 1 Utility 5 | . . . . . 5 Weapon 1 | . . . . . 1 Parts Attached 49 | 3 8 12 4 6 16 Power 5 | . 1 1 1 . 2 Engine 5 | . 1 1 1 . 2 Core . | . . . . . . Reactor . | . . . . . . Propulsion 12 | 2 . 3 . 3 4 Treads 8 | 2 . 3 . 1 2 Leg . | . . . . . . Wheel 4 | . . . . 2 2 Hover . | . . . . . . Flight . | . . . . . . Utility 13 | 1 3 1 1 2 5 Device 4 | 1 . . 1 . 2 Storage 3 | . 2 . . 1 . Processor 3 | . . . . . 3 Hackware 1 | . . . . 1 . Protection 2 | . 1 1 . . . Artifact . | . . . . . . Weapon 19 | . 4 7 2 1 5 Energy Gun 7 | . . 2 . . 5 Energy Cannon 6 | . . 3 2 1 . Ballistic Gun 3 | . 2 1 . . . Ballistic Cannon . | . . . . . . Launcher 2 | . 1 1 . . . Special Weapon . | . . . . . . Impact Weapon 1 | . 1 . . . . Slashing Weapon . | . . . . . . Piercing Weapon . | . . . . . . Special Melee Weapon . | . . . . . . Unidentified Prototypes 4 | . 1 . . . 3 Parts Lost 15 | . . 4 1 . 10 Power 4 | . . 1 1 . 2 Propulsion 6 | . . 2 . . 4 Utility 1 | . . 1 . . . Weapon 4 | . . . . . 4 Highest Loss Streak 9 | . . 2 1 . 9 To Critical Strikes 1 | . . . . . 1 Average Backups 14 | 6 9 14 15 15 19 Power . | 1 1 . . . . Propulsion 3 | 4 3 2 3 4 6 Utility 3 | . 1 3 3 4 3 Weapon 5 | 1 2 6 7 3 4 Tool/Special . | . . . . . . Unused Backups 23 | . 7 2 . 2 12 Power 2 | . 2 . . . . Propulsion 1 | . . . . . 1 Utility 4 | . 1 1 . . 2 Weapon 12 | . 4 1 . 2 5 Tool/Special 4 | . . . . . 4 Average Slot Usage (%) 97 | . 100 99 97 90 75 Engine 13 | . 14 13 11 14 9 Treads 26 | . 28 27 28 21 6 Wheel 1 | . . . . 6 10 Device 9 | . 5 9 14 10 9 Storage 13 | . 14 14 14 14 6 Protection 3 | . 8 4 . . . Energy Gun 1 | . . . . . 17 Energy Cannon 19 | . . 23 27 19 . Ballistic Gun 4 | . 26 2 . . . Peak Build Rating 64 | 9 14 14 15 18 64 Average Rating 14 | 7 12 12 14 15 45 On Entrance 12 | 6 9 12 14 15 18 Avg Prop Armor Cover (%) 14 | . . . . 15 8 Naked Turns . | . . . . . . Heaviest Build 78 | 13 34 42 44 54 78 Greatest Support 66 | 40 40 40 40 40 66 Greatest Overweight (x) 4 | . . 1 1 3 4 Average Overweight (x) . | . . . . 1 2 Largest Inventory Capacity 20 | 8 15 15 15 20 20 Average Capacity 15 | 8 10 15 15 17 20 Most Carried 20 | 6 12 15 15 20 20 Average Carried 14 | 5 9 14 15 15 19 Final Capacity 20 | 8 15 15 15 20 20 Final Carried 20 | 4 12 15 15 20 16 Class Distribution -------------------- 54% | Mutant 26% | Commander-Mutant 16% | Scavenger-Mutant Dominant Class ---------------- Mutant | -10/Materials Mutant | -10/Subcaves Commander-Mutant | -9/Recycling Commander-Mutant | -9/Scraptown Commander-Tank | -6/Factory Resources | -11 -10 -10 -9 -9 -6 ----------- Run | Yrd Mat Sub Rec Scr Fac Matter Collected 1145 | 242 299 344 35 30 195 Remotely . | . . . . . . Salvage Created 3102 | 67 787 608 610 . 1030 Parts 149 | 6 51 44 21 . 27 Haulers Intercepted 3 | . 2 . . . 1 Recyclers Shooed 5 | . . . 1 . 4 Parts Field Recycled . | . . . . . . Retrieved Matter . | . . . . . . Parts Self-Destructed 8 | . . 8 . . . Prevented . | . . . . . . Parts Restored . | . . . . . . Kills | -11 -10 -10 -9 -9 -6 ------- Run | Yrd Mat Sub Rec Scr Fac Combat Hostiles Destroyed 48 | . 17 16 6 . 9 Guns 19 | . 14 . . . 5 Cannons 15 | . . 11 4 . . AOE 7 | . 3 4 . . . Classes Destroyed 16 | 2 6 3 1 . 4 Worker 1 | . 1 . . . . Builder 2 | . . . . . 2 Tunneler 3 | 1 1 . . . 1 Hauler 3 | . 2 . . . 1 Recycler 7 | 1 . . 3 . 3 Operator 2 | . 2 . . . . Watcher 4 | . 3 . . . 1 Swarmer 8 | . 6 1 . . 1 Grunt 16 | . 11 . 1 . 4 Protector 1 | . . . 1 . . Sentry 5 | . . 1 4 . . Demolisher 1 | . . . . . 1 Hunter 2 | . . . . . 2 Programmer 1 | . . . . . 1 Artisan 1 | . . 1 . . . Subdweller 14 | . . 14 . . . Best Kill Streak 11 | 2 6 2 2 . 11 Combat Bots Only 4 | . 4 2 2 . 4 Max Kills in Single Turn 3 | 1 2 2 1 . 3 Gunslinging 1 | . 1 . . . . Exploded 2 | . 1 2 . . . Melee . | . . . . . . Uniques/NPCs Destroyed . | . . . . . . Combat | -11 -10 -10 -9 -9 -6 -------- Run | Yrd Mat Sub Rec Scr Fac Hostile Shots Fired 190 | . 35 45 19 . 91 Missed 54 | . 9 18 4 . 23 Hits 136 | . 26 27 15 . 68 Projectile 136 | . 26 27 15 . 68 AOE 3 | . . 1 . . 2 Critical Strikes 4 | . . . . . 4 Damage Taken 2050 | . 271 498 162 . 1119 Core 291 | . 34 108 10 . 139 Absorbed by Shields 51 | . . . . . 51 Core Remaining (%) 69 | 100 . . . 39 . Volleys Fired 218 | 4 42 107 22 . 43 Largest 3 | 2 2 2 2 . 3 Hottest 195 | 70 70 160 160 . 195 Shots Fired 335 | 8 76 131 40 . 80 Gun 212 | 8 72 52 . . 80 Cannon 110 | . . 70 40 . . Launcher 13 | . 4 9 . . . Special . | . . . . . . Kinetic 88 | 4 71 13 . . . Thermal 164 | 4 1 109 40 . 10 Explosive 9 | . . 9 . . . Electromagnetic 74 | . 4 . . . 70 Robot Hit Streak 17 | 5 9 17 6 . 7 Robot Miss Streak 3 | 2 2 2 2 . 3 Penetration Max . | . . . . . . Secondary Targets 1 | . 1 . . . . Max Gunslinging Chain 1 | . 1 . . . . Shots Hit Robots 169 | 5 50 39 21 . 54 Core Hits 86 | 3 32 22 9 . 20 Critical Kills 2 | . 1 1 . . . Critical Parts Destroyed 1 | . . . 1 . . Critical Strikes 10 | . 1 1 1 . 7 Burn 3 | . . . . . 3 Meltdown 1 | . . 1 . . . Destroy 1 | . 1 . . . . Corrupt 4 | . . . . . 4 Smash 1 | . . . 1 . . Melee Attacks 16 | . 5 5 6 . . Impact 16 | . 5 5 6 . . Slashing . | . . . . . . Piercing . | . . . . . . Sneak Attacks . | . . . . . . Combat Hostiles . | . . . . . . Follow-up Attacks . | . . . . . . Damage Inflicted 4946 | 61 1080 1407 651 . 1747 Guns 2441 | 61 760 . . . 1620 Cannons 1354 | . . 830 524 . . Explosions 996 | . 305 564 . . 127 Melee 127 | . . . 127 . . Ramming 28 | . 15 13 . . . Kinetic 784 | 24 760 . . . . Thermal 1796 | 37 41 830 524 . 364 Explosive 564 | . . 564 . . . Electromagnetic 1647 | . 264 . . . 1383 Impact 127 | . . . 127 . . Slashing . | . . . . . . Piercing . | . . . . . . Highest Corruption 2 | . . . . . 2 Average Corruption 1 | . . . . . 1 Corruption Purged . | . . . . . . Corruption Blocked . | . . . . . . Overload Shots . | . . . . . . Overflow Damage 55 | . 10 . 45 . . Projectiles 4 | . . . 4 . . Explosions 10 | . 10 . . . . Melee 41 | . . . 41 . . Knockbacks . | . . . . . . Impact . | . . . . . . Kinetic . | . . . . . . Secondary . | . . . . . . Self-Inflicted Damage 40 | . . . . . 40 Shots 1 | . . . . . 1 Rammed 6 | . 4 2 . . . Targets Rammed 7 | . 5 2 . . . Kicked . | . . . . . . Crushed 1 | . 1 . . . . Highest Temperature 390 | 36 27 264 324 . 390 Average Temperature 77 | 19 9 45 73 . 134 Received Heat Transfer 326 | . 96 60 90 . 80 Effects 5 | . . . 1 . 4 Shutdowns 1 | . . . . . 1 Energy Bleed 2 | . . . 1 . 1 Interference 2 | . . . . . 2 Siege Activations . | . . . . . . Martial Activations . | . . . . . . Shielding Activations . | . . . . . . Robots Disrupted 1 | . . . . . 1 Combat Hostiles . | . . . . . . Robots Corrupted 8 | . . . 2 . 6 Combat Hostiles 6 | . . . 2 . 4 Parts Fried 15 | . 1 . 3 . 11 Impact Corruptions 5 | . . . 5 . . Robots Melted 1 | . . 1 . . . Combat Hostiles 1 | . . 1 . . . Parts Melted 8 | . . 2 1 . 5 Heat Transferred 2977 | 111 100 1110 656 . 1000 Parts Sabotaged . | . . . . . . Parts Stolen . | . . . . . . Parts Stripped . | . . . . . . Power Chain Reactions 2 | . 1 . . . 1 Alert | -11 -10 -10 -9 -9 -6 ------- Run | Yrd Mat Sub Rec Scr Fac Maximum Alert Level . | . . . . . . Low Security (%) 100 | 100 100 . 100 . 100 Level 1 . | . . . . . . Level 2 . | . . . . . . Level 3 . | . . . . . . Level 4 . | . . . . . . Level 5 . | . . . . . . High Security . | . . . . . . Max Security . | . . . . . . Peak Influence 158 | 10 150 . 82 . 158 Initial 19 | . . . 19 . . Average 44 | 3 73 . 20 . 48 Influence Increases 1424 | 10 580 40 366 . 428 Destroy 0b10 Robot/C 680 | . 340 40 100 . 200 Destroy 0b10 Robot/NC 120 | 10 45 . 25 . 40 Destroy Leader 144 | . 80 . . . 64 Allied During Kill 10 | . . . 3 . 7 Successful Hack 106 | . 46 . 18 . 42 Select Force Hacks 270 | . 60 . 210 . . Disable Machine 75 | . . . . . 75 Destroy Structure 19 | . 9 . 10 . . Influence Decreases 1276 | 10 483 97 406 . 280 Entered New Map 68 | . . 47 21 . . Time Decay 1058 | 10 483 50 385 . 130 Lost Part 100 | . . . . . 100 Lost Ally 50 | . . . . . 50 Squads Dispatched 8 | . 3 . . . 5 Investigation 2 | . 2 . . . . Extermination 1 | . . . . . 1 Reinforcement 3 | . 1 . . . 2 Assault . | . . . . . . Garrison 2 | . . . . . 2 Intercept . | . . . . . . Searches Triggered . | . . . . . . Construction Impeded 1 | . . . . . 1 Haulers Reinforced 1 | . . . . . 1 Active Scanning Responses . | . . . . . . Cargo Convoy Interrupts . | . . . . . . Stealth | -11 -10 -10 -9 -9 -6 --------- Run | Yrd Mat Sub Rec Scr Fac Distress Signals 2 | . 1 . 1 . . Communications Jammed . | . . . . . . Distress Signals . | . . . . . . Times Spotted 72 | . 30 23 3 . 16 Peak Tracking Total 7 | . 7 6 2 . 5 Tactical Retreats . | . . . . . . Traps | -11 -10 -10 -9 -9 -6 ------- Run | Yrd Mat Sub Rec Scr Fac Traps Triggered . | . . . . . . Indirectly . | . . . . . . Trap Hack Attempts . | . . . . . . Triggered . | . . . . . . Disarmed . | . . . . . . Reprogrammed . | . . . . . . Reused . | . . . . . . Traps Extracted . | . . . . . . Installed . | . . . . . . Triggered . | . . . . . . Machines | -11 -10 -10 -9 -9 -6 ---------- Run | Yrd Mat Sub Rec Scr Fac Machines Disabled 6 | . . 1 . . 5 Max in Single Turn 1 | . . 1 . . 1 Machines Repaired . | . . . . . . Machines Dismantled . | . . . . . . Machines Sabotaged . | . . . . . . Overloaded Fab Kills . | . . . . . . Hacking | -11 -10 -10 -9 -9 -6 --------- Run | Yrd Mat Sub Rec Scr Fac Machines Accessed 26 | . 8 2 12 2 2 Terminals 13 | . 6 . 5 . 2 Fabricators . | . . . . . . Repair Stations . | . . . . . . Recycling Units 9 | . 2 . 7 . . Scanalyzers . | . . . . . . Garrison Access . | . . . . . . Total Hacks 69 | . 25 4 25 11 4 Successful 53 | . 16 4 19 11 3 Failed 15 | . 8 . 6 . 1 Catastrophic 2 | . 1 . 1 . . Database Lockouts 1 | . 1 . . . . Manual 45 | . 23 . 18 . 4 Terminals 40 | . 23 . 13 . 4 Fabricators . | . . . . . . Repair Stations . | . . . . . . Recycling Units 14 | . 2 . 12 . . Scanalyzers . | . . . . . . Garrison Access . | . . . . . . Terminal Hacks 23 | . 4 4 4 11 . Record 6 | . . 3 . 3 . Robot Analysis 13 | . 3 . 2 8 . Prototype ID Bank 3 | . 1 . 2 . . Proto ID Catalog 1 | . . 1 . . . Fabricator Hacks . | . . . . . . Repair Station Hacks . | . . . . . . Recycling Unit Hacks 2 | . . . 2 . . Retrieve Components 2 | . . . 2 . . Scanalyzer . | . . . . . . Garrison Access Hacks . | . . . . . . Unauthorized Hacks 28 | . 12 . 13 . 3 Terminals 19 | . 10 . 6 . 3 Assimilate 2 | . 2 . . . . Botnet 4 | . 2 . 1 . 1 Operators 1 | . 1 . . . . Skim 12 | . 5 . 5 . 2 Fabricators . | . . . . . . Repair Stations . | . . . . . . Recycling Units 9 | . 2 . 7 . . Tunnel 9 | . 2 . 7 . . Scanalyzers . | . . . . . . Garrison Access . | . . . . . . Data Cores Recovered 1 | . 1 . . . . Used . | . . . . . . Hacking Detections 11 | . 5 . 4 . 2 Full Trace Events . | . . . . . . Feedback Events . | . . . . . . Feedback Blocked . | . . . . . . Robot Schematics Acquired . | . . . . . . Robots Built . | . . . . . . Authchips . | . . . . . . Time . | . . . . . . Total Robot Build Rating . | . . . . . . Part Schematics Acquired . | . . . . . . Parts Built . | . . . . . . Authchips . | . . . . . . Time . | . . . . . . Total Part Build Rating . | . . . . . . Part Studies Acquired . | . . . . . . Parts Repaired . | . . . . . . Time . | . . . . . . Parts Recycled . | . . . . . . Recycled Matter . | . . . . . . Retrieved Matter . | . . . . . . Retrieved Components 4 | . . . 4 . . Parts Scanalyzed . | . . . . . . Part Schematics Acquired . | . . . . . . Parts Damaged . | . . . . . . Bothacking | -11 -10 -10 -9 -9 -6 ------------ Run | Yrd Mat Sub Rec Scr Fac Used RIF Installer . | . . . . . . Robots Hacked . | . . . . . . Non-combat . | . . . . . . Combat . | . . . . . . Robot Hacks Applied . | . . . . . . Relay Couplers Released . | . . . . . . Fabnet Peak Effective % . | . . . . . . Robots Rewired 7 | . . . 7 . . Allies Hacked . | . . . . . . Hacks Repelled . | . . . . . . Allies | -11 -10 -10 -9 -9 -6 -------- Run | Yrd Mat Sub Rec Scr Fac Total Allies 8 | . 1 . 7 . . Largest Group 8 | . 1 1 8 7 7 Highest-Rated Group 118 | . 10 10 118 108 108 Highest-Rated Ally 27 | . 10 10 27 27 27 Initial UFD Resources 22 | . . . . . 22 Total Orders 12 | . 2 4 5 . 1 STAY 7 | . 1 2 3 . 1 FOLLOW 5 | . 1 2 2 . . Ally Attacks 18 | . . . . . 18 Total Damage 263 | . . . . . 263 Kills 1 | . . . . . 1 Allies Corrupted . | . . . . . . Allies Melted . | . . . . . . Intel | -11 -10 -10 -9 -9 -6 ------- Run | Yrd Mat Sub Rec Scr Fac Active Infowar (turns) 5379 | 19 508 4391 461 . . Terrain 5379 | 19 508 4391 461 . . Robot Analysis Total 13 | . 3 . 2 8 . Derelict Logs Recovered 4 | . . 1 . 3 . Drone Launches . | . . . . . . Drone Recoveries . | . . . . . . Exploration | -11 -10 -10 -9 -9 -6 ------------- Run | Yrd Mat Sub Rec Scr Fac Turns Passed 12044 | 42 1417 6521 1626 2046 392 Spaces Moved 5430 | 21 720 2820 557 1145 167 Core . | . . . . . . Treads 4616 | 4 720 2820 557 514 1 Legs 17 | 17 . . . . . Wheels 797 | . . . . 631 166 Hover . | . . . . . . Flight . | . . . . . . Fastest Speed 110 | 120 160 160 160 145 110 Average Speed 169 | 127 160 166 196 174 127 Slowest Speed 250 | 160 160 240 250 250 160 Overloaded Moves . | . . . . . . Propulsion Burnouts . | . . . . . . Robots Hopped . | . . . . . . Potential Cave-ins . | . . . . . . Cave-ins Triggered . | . . . . . . Exploration Rate (%) 62 | 3 96 96 92 84 6 Regions Visited 5 Branch Regions 3 Pre-discovered Areas 14 | . 3 . 10 1 . Known Exits Taken 2 | . 1 . 1 . . Unknown Exits Taken 3 | 1 . 1 . 1 . Scrap Searched 11 | . . 9 . 2 . Spaces Dug 18 | . 8 10 . . . Terrain Destroyed 91 | . 8 73 10 . . Melee 2 | . 2 . . . . Projectile 46 | . . 36 10 . . AOE 43 | . 6 37 . . . Terrain Rammed . | . . . . . . Walls Destroyed . | . . . . . . Machines Disabled . | . . . . . . Actions | -11 -10 -10 -9 -9 -6 --------- Run | Yrd Mat Sub Rec Scr Fac Total 7916 | 29 898 4486 1033 1196 274 Wait 2035 | . 97 1513 372 20 33 Move 5426 | 20 719 2820 556 1144 167 Hop . | . . . . . . Pick Up 39 | . 12 10 . 13 4 Fast Attach 15 | 1 1 2 1 . 10 Attach 14 | 2 . 6 . . 6 Detach 2 | . . 2 . . . Swap 40 | . 9 13 5 7 6 Drop 33 | 2 8 7 . 11 5 Fire 218 | 4 42 107 22 . 43 Melee 16 | . 5 5 6 . . Ram . | . . . . . . Kick . | . . . . . . Crush 6 | . 5 1 . . . Escape Stasis . | . . . . . . Rewire 72 | . . . 71 1 . Trap . | . . . . . . Miscellaneous . | . . . . . . Route ------- -11/Scrapyard -10/Materials (discovered 5 exits: *Mat x3 / [*Min] / *Sub) -10/Subcaves (discovered 3 exits: [*Mat x2] / *Rec) -9/Recycling (discovered 2 exits: [*Fac] / *Scr) -9/Scraptown (discovered 2 exits: *Fac x2) -6/Factory History --------- Turn | Location | Event 14 | -11/Scrapyard | Discovered new exit (range 3) 43 | -11/Scrapyard | Entered Materials 334 | -10/Materials | Build established: Mutant 798 | -10/Materials | Discovered new exit (range 5) 966 | -10/Materials | Discovered new exit (range 3) 1152 | -10/Materials | Discovered new exit (range 6) 1339 | -10/Materials | Central database locked down 1350 | -10/Materials | Identified exit to Materials 1350 | -10/Materials | Identified exit to Subcaves 1460 | -10/Materials | Entered Subcaves 1460 | -10/Subcaves | Accompanied by 1 ally 1820 | -10/Subcaves | Visited 4L-MR0's lab 1900 | -10/Subcaves | Discovered new exit (range 15) 2283 | -10/Subcaves | Ambushed by Subdwellers from Twisted Machinery 2484 | -10/Subcaves | Ambushed by Subdwellers from Twisted Machinery 2520 | -10/Subcaves | Discovered new exit (range 5) 2710 | -10/Subcaves | Shifting Twisted Machinery released Shrapnel Trap 2752 | -10/Subcaves | Shifting Twisted Machinery released Shrapnel Trap 2799 | -10/Subcaves | Core integrity fell below 50% 2865 | -10/Subcaves | Learned Materials emergency access door positions 2930 | -10/Subcaves | Shifting Twisted Machinery released Battle Rifle 2931 | -10/Subcaves | Shifting Twisted Machinery released Hvy. Riot Gun 3003 | -10/Subcaves | Disturbed a concealed Subdweller 3185 | -10/Subcaves | A swath of the cavern ceiling suddenly collapsed 3358 | -10/Subcaves | Visited Clippyterm 3365 | -10/Subcaves | Learned Research machine intel 3753 | -10/Subcaves | Shifting Twisted Machinery released Riot Gun 3764 | -10/Subcaves | Shifting Twisted Machinery released Sub. Laser 3896 | -10/Subcaves | Build established: Scavenger-Mutant 5908 | -10/Subcaves | Build established: Mutant 6216 | -10/Subcaves | A swath of the cavern ceiling suddenly collapsed 7941 | -10/Subcaves | Discovered new exit (range 4) 7981 | -10/Subcaves | Entered Recycling 7981 | -9/Recycling | Accompanied by 1 ally 8005 | -9/Recycling | Scanned before Scraplab entrance 8839 | -9/Recycling | Build established: Commander-Mutant 8919 | -9/Recycling | Discovered new exit (range 9) 9149 | -9/Recycling | Loaded intel: 7 recycling unit locations 9209 | -9/Recycling | Learned Storage security intel 9261 | -9/Recycling | Identified exit to Scraptown 9333 | -9/Recycling | Learned Materials trap positions 9358 | -9/Recycling | Learned Materials emergency access door positions 9432 | -9/Recycling | Learned location of 2 exits from Materials 9477 | -9/Recycling | Learned 2 Storage zone layouts 9548 | -9/Recycling | Entered Scraplab 9607 | -9/Recycling | Entered Scraptown 9607 | -9/Scraptown | Accompanied by 7 allies 9780 | -9/Scraptown | Visited UFD Registry 9780 | -9/Scraptown | Registered with UFD as "Slugkit" 9815 | -9/Scraptown | Visited CPS Storage 9845 | -9/Scraptown | Visited Symbiants 9930 | -9/Scraptown | Scanned Subdweller tech in exchange for log data 9935 | -9/Scraptown | Learned location of Quarantine (-3) 9937 | -9/Scraptown | Learned Factory terminal intel 9940 | -9/Scraptown | Learned location of 1 exit from Research 10071 | -9/Scraptown | Discovered new exit (range 9) 10814 | -9/Scraptown | Visited The Evicted 10874 | -9/Scraptown | Visited Supply Room 10933 | -9/Scraptown | Visited A0-MCA Data Center 10942 | -9/Scraptown | Given a C+ rating by A0-MCA 10968 | -9/Scraptown | Visited Science Guys 11100 | -9/Scraptown | Visited Botcube Research 11112 | -9/Scraptown | Found Botcube 11157 | -9/Scraptown | Visited Infowarlord's Domain 11169 | -9/Scraptown | Found Exp. Signal Interpreter 11193 | -9/Scraptown | Visited Analyses Database 11221 | -9/Scraptown | Visited Cartography Club 11348 | -9/Scraptown | Visited Scrapoid Research Area 11393 | -9/Scraptown | Visited Junk Repository 11446 | -9/Scraptown | Visited Curators Association 11546 | -9/Scraptown | Met Optimus 11546 | -9/Scraptown | Accepted into 0bPrime 11625 | -9/Scraptown | Discovered new exit (range 5) 11653 | -9/Scraptown | Entered Factory 11653 | -6/Factory | Accompanied by 7 allies 11653 | -6/Factory | Evolved 8 slots: Power x1, Propulsion x1, Utility x5, Weapon x1 11654 | -6/Factory | Loaded intel: 25 terminal locations 11805 | -6/Factory | Lost 3 allies 11920 | -6/Factory | Spotted B-75 Beast 11935 | -6/Factory | Garrison activated, responded to threat 11975 | -6/Factory | Lost 3 allies 12045 | -6/Factory | Self-destructed Last Messages --------------- 12038_ K-01 Serf cleans the Matter Pump. 12039_ K-01 Serf collects debris. 12040_ Acquired Remote Shield. 12041_ R-10 Processor collects Corrupted Carbon-fiber Leg. 12041_ K-01 Serf cleans the Matter Pump. 12041_ K-01 Serf collects debris. 12041_ K-01 Serf cleans the Matter Pump. 12041_ K-01 Serf collects debris. 12042_ P-60 Hacker resets U-05 Engineer, system corruption cleaned. 12042_ Deuterium Engine destroyed. 12043_ K-01 Serf collects debris. 12043_ S-27 Virus destroyed. 12044_ K-01 Serf collects debris. 12044_ Imp. Lightning Gun destroyed. 12044_ K-01 Serf collects debris. 12045_ R-10 Processor collects Corrupted Carbon-fiber Leg. 12045_ K-01 Serf collects debris. Map ----- +----------------------------------------------------+ | ?????????????????????????????????????????????????? | | ?????????????????????????????????????????????????? | | ?????????????????????????????????????????????????? | | ?????????????????????????????????????????????????? | | ?????????????????????????????????????????????????? | | ?????????????????????????????????????????????????? | | ?????????????????????????????????????????????????? | | ?????????????????????????????????????????????????? | | ?????????????????????????????????????????????????? | | ?????????????????????????????????????????????????? | | ?????????????????????????????????????????????????? | | ????????????? ?????? ??????????????????????????? | | ??????????? ?????? ]?????????????????????????? | | ?????????? ???^?? ?????????????????????????? | | ??????????# ??? ?? ?????????????????????????? | | ??????????# ?? ? ?????????????????????????? | | ??????????# "?? ?" "???"????????????????????? | | ??????????# "?" """ """ """ ""???????????????? | | ??????????# """ """ """ """ ""???????????????? | | ??????????# [*k ???????????????? | | ??????????# """ """ """%"""^""? ?????????????? | | ??????????# """ """ """%"%" """ ?#???????????? | | ??????????# """ """u"""%%""g%"" #???????????? | | #####+##### k =*%=skk[ ????????????? | | """ ""= %%%|k%" """??????????????? | | """ "%%%%@ k%"" """??????????????? | | % %"" ""%=k R %%% """ ?????????? | | !% % %% ?????????? | | i% R !k!%**%= ?????????? | | ###+####### ###########!!! ##########?????????? | | # # #???? # #??????????????????? | | # """"" # #?? # #??????????????????? | | # ""T"" # #? + #??????????????????? | | + # # # #??????????????????? | | # [ / # # #??????????????????? | | # # # # #??????????????????? | | # # # ?# ##??????????????????? | | # # # ?? #???????????????????? | | ###########+##########?? #???????????????????? | | # #??????????? #???????????????????? | | # [! #??????????? #???????????????????? | | # [ #??????????? #???????????????????? | | # [[! #???????????? ????????????????????? | | # #??????????????????????????????????? | | ####/####+###??????????????????????????????????? | | #????????????????????????????????????? | | #????????????????????????????????????? | | [!! #????????????????????????????????????? | | !! #????????????????????????????????????? | | !! #????????????????????????????????????? | +----------------------------------------------------+ Best States ------------- Heat Dissipation 51 Energy Generation 23 Energy Capacity 450 Matter Stores 300 Matter Capacity 300 Sight Range 16 Terrain Scan Range 16 Terrain Scan Density 10 Additional Mass Support 12 Armor Coverage 150 Evasion (%) 55 Target Analysis 9 Recoil Reduction 3 Offensive Hacking 10 Item Schematics ----------------- None Robot Schematics ------------------ None Fabricated ------------ Nothing Repaired ---------- Nothing Studied --------- None Alien Tech Used ----------------- None Achievements -------------- None Challenges ------------ None Game ------ Seed GravityGatlingChronowheel Manual? 0 Play Time 00:45:17 Cumulative 375.9 hours Start 2026.03.30 @ 16:03:36 End 2026.03.30 @ 16:53:09 Sessions 1 Manual Loads 0 Difficulty Rogue Special Mode None Game No. 306 Rogue 270 Adventurer 36 Explorer 0 Win Type - Total 5 Types 2/0/0/1/0/0/0/2/0/0 Lore% 70 Gallery% 66 Achievement% 54 Wizard Run 0 Options --------- Layout 1 ASCII 0 Keyboard 0 Movement Numpad Keybinds 0 Fullscreen 1 Font 48/Smallcaps Map View 50x35 Zoom Use 0% Tactical HUD 1 Map Filters NONE Filters NONE Steam 1 RUN: 5e2ad0d6-8be7-410e-b870-250d759a160b